bitfinex/quotes_SOLUSD_20250313
["timestamp","ask_amount","ask_price","bid_price","bid_amount"]
[1741847573518,25.92225172,124.0,123.95,24.25925172]
[1741847573718,0.03,124.01,123.96,24.25925172]
[1741847574649,0.03,124.01,123.97,8.0664]
[1741847574852,24.28925172,124.01,123.96,32.32605172]
[1741847575446,24.28925172,124.01,123.96,24.25925172]
[1741847575750,24.25925172,123.99,123.94,31.60225172]
[1741847576249,24.54357486,124.0,123.94,31.60225172]
[1741847577149,8.0651,123.99,123.94,31.60225172]
[1741847577345,32.32435172,123.99,123.94,31.60225172]
[1741847577556,32.32435172,123.99,123.95,7.28]
[1741847578020,32.32395172,124.0,123.95,7.28]
[1741847578428,24.25925172,123.99,123.95,7.343]
[1741847579558,32.32375172,124.0,123.95,7.343]
[1741847580351,24.25925172,123.99,123.95,7.343]
[1741847580850,8.0645,124.0,123.95,7.343]
[1741847581056,32.32375172,124.0,123.95,31.60225172]
[1741847581353,32.32375172,124.0,123.95,7.343]
[1741847581528,24.25925172,123.99,123.95,7.343]
[1741847582243,32.32375172,124.0,123.95,7.343]
[1741847582953,32.32375172,124.0,123.95,15.4107]
[1741847583253,32.32375172,124.0,123.95,7.343]
[1741847583640,24.28925172,124.01,123.95,24.32225172]
[1741847583830,0.03,124.01,123.97,24.25925172]
[1741847584446,8.0939,124.01,123.96,24.25925172]
[1741847585133,0.03,124.01,123.96,24.25925172]
[1741847585331,0.03,124.01,123.97,7.28]
[1741847585846,8.0938,124.01,123.97,7.28]
[1741847586857,24.25925172,123.99,123.95,0.063]
[1741847587030,24.25925172,123.97,123.95,0.063]
[1741847587352,8.0938,124.01,123.95,7.343]
[1741847587541,32.35305172,124.01,123.95,15.4105]
[1741847587741,32.35305172,124.01,123.95,39.66975172]
[1741847588139,32.35305172,124.01,123.95,15.4105]
[1741847588337,32.35305172,124.01,123.95,39.66975172]
[1741847588549,24.25925172,124.0,123.95,7.343]
[1741847589350,32.35305172,124.01,123.95,15.4104]
[1741847589649,8.0938,124.01,123.95,39.66965172]
[1741847589965,0.03,124.05,124.03,20.0]
[1741847590134,0.03,124.05,124.04,59.62115172]
[1741847592238,0.03,124.05,124.04,51.55925172]
[1741847593543,0.31432314,124.05,123.99,7.3]
[1741847593759,0.31432314,124.05,124.0,24.25925172]
[1741847593960,0.03,124.05,124.02,24.25925172]
[1741847594278,0.03,124.05,124.03,24.25925172]
[1741847594562,0.03,124.05,124.04,7.32]
[1741847596361,0.03,124.05,124.04,39.64115172]
[1741847597636,0.03,124.05,124.04,7.32]
[1741847597954,0.03,124.05,124.02,24.25925172]
[1741847598164,0.03,124.05,124.03,7.3]
[1741847598537,0.03,124.05,124.03,39.62175172]
[1741847598750,0.03,124.05,124.03,7.3]
[1741847600137,0.03,124.05,124.03,39.62165172]
[1741847600659,0.03,124.05,124.03,15.3624]
[1741847601685,0.03,124.05,124.03,39.62165172]
[1741847602086,0.03,124.05,124.03,7.3]
[1741847605171,0.31432314,124.05,123.99,6.6148]
[1741847605484,24.57357486,124.05,124.0,7.28]
[1741847606376,24.25925172,124.03,123.99,7.28]
[1741847607490,32.32205172,124.03,123.99,7.28]
[1741847608001,32.32135172,124.04,123.99,39.60435172]
[1741847608290,8.0621,124.04,123.99,39.60435172]
[1741847609295,32.32135172,124.04,123.99,39.60435172]
[1741847610171,8.0621,124.04,123.99,39.60435172]
[1741847610484,0.31432314,124.05,124.01,24.25925172]
[1741847610994,8.37562314,124.05,124.0,24.25925172]
[1741847611787,8.37562314,124.05,124.0,32.32345172]
[1741847613990,0.03,124.05,124.01,24.25925172]
[1741847614177,0.03,124.05,124.04,24.25925172]
[1741847616399,0.03,124.05,124.04,32.32115172]
[1741847618199,0.03,124.05,124.04,24.25925172]
[1741847618396,0.03,124.05,124.03,31.53925172]
[1741847620694,0.03,124.05,124.03,39.60175172]
[1741847621090,0.03,124.05,124.04,24.25925172]
[1741847622498,0.03,124.05,124.04,32.32115172]
[1741847626394,0.03,124.09,124.04,52.91252372]
[1741847626600,0.03,124.09,124.08,24.25925172]
[1741847626839,0.03,124.09,124.08,31.57925172]
[1741847627782,0.03,124.09,124.08,132.52890058]
[1741847628584,0.03,124.09,124.08,140.58820058]
[1741847629085,0.03,124.09,124.08,89.62]
[1741847629407,0.03,124.09,124.08,31.57925172]
[1741847631186,0.03,124.09,124.08,58.28820058]
[1741847632909,0.03,124.09,124.08,31.57925172]
[1741847633585,0.03,124.09,124.08,39.63855172]
[1741847633782,0.03,124.09,124.08,58.28820058]
[1741847634596,0.03,124.09,124.08,82.3]
[1741847636713,0.03,124.09,124.07,20.0]
[1741847637007,0.03,124.09,124.06,7.3]
[1741847640010,0.03,124.09,124.07,24.25925172]
[1741847640808,0.03,124.09,124.06,15.3605]
[1741847640809,0.03,124.09,124.06,39.61975172]
[1741847641011,0.03,124.09,124.06,7.3]
[1741847641198,0.03,124.09,124.06,39.61975172]
[1741847641841,0.03,124.09,124.06,7.3]
[1741847643304,0.03,124.09,124.08,15.51268672]
[1741847643504,0.03,124.12,124.11,20.0]
[1741847643714,0.03,124.12,124.11,22.81268672]
[1741847643887,0.03,124.12,124.11,41.46233558]
[1741847644323,0.03,124.12,124.11,50.15662047]
[1741847644894,0.03,124.12,124.11,39.56427161]
[1741847647124,0.03,124.13,124.12,18.64964886]
[1741847647313,0.03,124.13,124.12,42.85662047]
[1741847648007,0.03,124.13,124.12,125.15662047]
[1741847649115,0.03,124.13,124.12,133.21332047]
[1741847649317,0.0001,124.13,124.12,141.59634361]
[1741847649516,0.28432314,124.22,124.15,20.0]
[1741847649709,0.28432314,124.22,124.17,24.20697161]
[1741847649909,0.28432314,124.22,124.17,336.20697161]
[1741847650322,32.25677161,124.23,124.18,24.20697161]
[1741847650505,32.25677161,124.23,124.17,24.20697161]
[1741847651226,24.20697161,124.25,124.19,24.20697161]
[1741847651408,24.20697161,124.25,124.2,7.36]
[1741847652027,0.28432314,124.24,124.2,7.36]
[1741847652225,24.20697161,124.25,124.2,7.36]
[1741847652526,0.14216157,124.25,124.2,31.56697161]
[1741847652824,32.39673318,124.26,124.21,24.20697161]
[1741847653231,8.18976157,124.26,124.21,24.20697161]
[1741847653430,8.18976157,124.26,124.21,32.25777161]
[1741847653731,0.14216157,124.27,124.22,24.20697161]
[1741847653933,8.0465,124.28,124.23,24.20697161]
[1741847654236,32.25347161,124.28,124.24,7.36]
[1741847654417,24.49129475,124.27,124.24,7.36]
[1741847654734,32.39563318,124.28,124.24,7.36]
[1741847655315,24.20697161,124.27,124.24,7.36]
[1741847656316,24.49129475,124.26,124.24,7.36]
[1741847656517,24.20697161,124.26,124.24,7.36]
[1741847657835,8.0482,124.25,124.24,7.36]
[1741847658230,32.25407161,124.27,124.24,7.36]
[1741847658431,8.0471,124.27,124.24,7.36]
[1741847659117,32.25407161,124.27,124.24,7.36]
[1741847659319,24.20697161,124.26,124.24,7.36]
[1741847659620,24.20697161,124.25,124.21,7.36]
[1741847659821,8.0495,124.23,124.21,7.36]
[1741847661842,32.25647161,124.23,124.17,24.20697161]
[1741847662056,24.20697161,124.22,124.18,7.36]
[1741847663336,29.8086,124.23,124.18,7.36]
[1741847663529,24.20697161,124.21,124.18,7.36]
[1741847663728,24.20697161,124.21,124.17,7.36]
[1741847663917,8.0515,124.2,124.17,7.36]
[1741847665025,32.25777161,124.22,124.17,7.36]
[1741847665328,32.25777161,124.22,124.17,31.56697161]
[1741847666036,32.25777161,124.22,124.17,7.36]
[1741847666821,52.38327161,124.22,124.17,7.36]
[1741847667539,32.25777161,124.22,124.17,7.36]
[1741847667748,8.0508,124.22,124.17,31.56697161]
[1741847668058,8.0508,124.22,124.18,24.20697161]
[1741847668232,8.0508,124.22,124.17,39.62037161]
[1741847668835,8.0508,124.22,124.17,31.56697161]
[1741847669049,32.25777161,124.22,124.17,7.36]
[1741847671354,8.0508,124.22,124.17,39.62037161]
[1741847671949,33.76667161,124.24,124.19,24.20697161]
[1741847672256,33.76667161,124.24,124.18,24.20697161]
[1741847673333,24.20697161,124.23,124.17,113.86697161]
[1741847673647,24.20697161,124.22,124.17,89.66]
[1741847674152,24.20697161,124.21,124.17,89.66]
[1741847674345,24.20697161,124.21,124.17,7.36]
[1741847675038,24.20697161,124.22,124.17,7.36]
[1741847675637,8.0508,124.21,124.17,7.36]
[1741847676129,8.0508,124.21,124.17,31.56697161]
[1741847679861,8.0508,124.21,124.17,7.36]
[1741847680047,8.0508,124.21,124.17,31.56697161]
[1741847681964,24.49129475,124.2,124.14,82.3]
[1741847682143,24.20697161,124.18,124.14,7.3]
[1741847682454,15.49309381,124.19,124.14,22.79309381]
[1741847682637,15.49309381,124.19,124.14,7.3]
[1741847682839,15.49309381,124.18,124.14,7.3]
[1741847683967,8.0534,124.17,124.14,7.3]
[1741847684467,8.0534,124.17,124.13,20.063]
[1741847684676,8.0534,124.17,124.13,27.383]
[1741847685041,32.26376759,124.17,124.13,27.383]
[1741847685950,24.21036759,124.2,124.14,32.26546759]
[1741847686143,24.21036759,124.2,124.15,24.21036759]
[1741847687165,24.21036759,124.2,124.14,32.26546759]
[1741847687465,24.21036759,124.19,124.14,24.21036759]
[1741847688263,24.21036759,124.2,124.14,24.21036759]
[1741847688467,8.0511,124.21,124.15,24.21036759]
[1741847688669,32.26146759,124.21,124.15,24.21036759]
[1741847690064,24.21036759,124.2,124.14,32.26546759]
[1741847691663,32.26246759,124.19,124.13,135.55096759]
[1741847691968,32.26246759,124.19,124.13,143.60696759]
[1741847692857,32.26246759,124.19,124.13,135.55096759]
[1741847693070,32.26246759,124.19,124.13,128.23096759]
[1741847693243,24.21036759,124.17,124.13,20.063]
[1741847693760,32.26436759,124.17,124.13,20.063]
[1741847694863,0.28432314,124.18,124.13,8.1189]
[1741847694864,32.40552916,124.18,124.13,8.1189]
[1741847695056,24.21036759,124.17,124.13,0.063]
[1741847696865,32.26336759,124.18,124.13,0.063]
[1741847697266,24.21036759,124.17,124.13,0.063]
[1741847698261,32.26336759,124.18,124.13,0.063]
[1741847699169,24.21036759,124.17,124.13,0.063]
[1741847699768,24.49469073,124.16,124.13,0.063]
[1741847700148,32.54909073,124.16,124.13,0.063]
[1741847701452,0.28432314,124.18,124.13,0.063]
[1741847701655,24.49469073,124.18,124.13,0.063]
[1741847701893,0.28432314,124.18,124.13,0.063]
[1741847702060,8.0534,124.17,124.13,0.063]
[1741847702369,24.49469073,124.18,124.13,0.063]
[1741847702556,32.54759073,124.18,124.13,0.063]
[1741847703571,8.33722314,124.18,124.13,0.063]
[1741847703771,32.54759073,124.18,124.13,8.119]
[1741847704667,32.54759073,124.18,124.13,0.063]
[1741847705168,8.33722314,124.18,124.13,0.063]
[1741847705467,32.54759073,124.18,124.13,0.063]
[1741847706273,23.83140741,124.18,124.13,0.063]
[1741847706570,23.54708427,124.18,124.13,0.063]
[1741847707171,0.03,124.2,124.17,35.49418427]
[1741847707357,0.03,124.2,124.18,22.77418427]
[1741847707766,0.03,124.2,124.18,7.28]
[1741847708263,0.03,124.2,124.18,22.77418427]
[1741847708472,0.03,124.2,124.18,7.28]
[1741847709394,0.03,124.2,124.18,30.82688427]
[1741847710073,0.03,124.2,124.18,7.28]
[1741847712363,0.03,124.2,124.18,31.46936893]
[1741847713279,0.03,124.2,124.19,24.18936893]
[1741847713469,0.03,124.2,124.19,30.73066893]
[1741847713655,0.03,124.2,124.19,32.29586893]
[1741847713975,0.03,124.2,124.19,133.38767936]
[1741847715480,0.03,124.22,124.21,20.0]
[1741847715686,0.03,124.22,124.21,24.18936893]
[1741847716181,0.03,124.22,124.21,42.98117936]
[1741847716386,0.03,124.22,124.21,125.28117936]
[1741847716568,0.03,124.22,124.21,437.28117936]
[1741847717657,0.03,124.22,124.21,445.33197936]
[1741847719281,0.03,124.22,124.21,133.18981779]
[1741847719882,0.03,124.22,124.21,106.48936893]
[1741847720071,0.03,124.22,124.21,114.54016893]
[1741847720386,0.03,124.22,124.21,106.48936893]
[1741847720599,0.03,124.22,124.21,114.54016893]
[1741847720802,0.03,124.22,124.21,106.48936893]
[1741847721081,0.03,124.22,124.21,7.28]
[1741847721766,0.03,124.22,124.21,39.52016893]
[1741847722064,0.03,124.22,124.21,7.28]
[1741847724866,0.03,124.22,124.2,220.36]
[1741847725270,0.03,124.22,124.2,228.4744]
[1741847725562,0.03,124.22,124.2,252.66376893]
[1741847726786,0.03,124.22,124.2,220.423]
[1741847727790,0.03,124.22,124.2,7.343]
[1741847728985,32.26956893,124.22,124.2,0.063]
[1741847729290,24.18936893,124.21,124.2,0.063]
[1741847729587,32.26956893,124.22,124.2,0.063]
[1741847730387,23.56397996,124.22,124.2,0.063]
[1741847730571,15.7681031,124.21,124.2,0.063]
[1741847730770,17.3249031,124.21,124.2,0.063]
[1741847731789,17.04057996,124.21,124.2,0.063]
[1741847732290,1.5568,124.21,124.2,0.063]
[1741847732584,0.03,124.22,124.2,0.063]
[1741847732790,0.03,124.22,124.2,7.343]
[1741847732989,15.48377996,124.21,124.2,7.343]
[1741847734797,23.53457996,124.21,124.2,7.343]
[1741847735487,23.8189031,124.21,124.2,0.063]
[1741847735684,23.53457996,124.21,124.2,0.063]
[1741847736191,0.03,124.22,124.2,0.063]
[1741847736192,15.51377996,124.22,124.2,0.063]
[1741847737094,15.48377996,124.21,124.2,0.063]
[1741847737291,15.7981031,124.21,124.2,0.063]
[1741847737497,15.51377996,124.21,124.2,0.063]
[1741847739184,23.56457996,124.21,124.2,0.063]
[1741847740993,0.03,124.21,124.2,0.063]
[1741847742398,23.56457996,124.21,124.2,0.063]
[1741847742902,0.03,124.21,124.2,0.063]
[1741847743191,8.0808,124.21,124.2,0.063]
[1741847744384,23.56457996,124.21,124.2,0.063]
[1741847745180,0.03,124.21,124.2,7.343]
[1741847747074,0.03,124.21,124.2,15.3945]
[1741847748102,0.03,124.21,124.2,30.87827996]
[1741847748307,0.0001,124.21,124.2,131.97009039]
[1741847748522,0.0001,124.21,124.2,133.50109039]
[1741847749101,0.0001,124.21,124.2,105.89827996]
[1741847749295,0.0001,124.21,124.2,8.1145]
[1741847749606,0.0001,124.21,124.2,30.87827996]
[1741847750006,0.0001,124.21,124.2,22.82677996]
[1741847752307,0.0001,124.21,124.2,31.52272249]
[1741847752900,0.0001,124.21,124.2,7.343]
[1741847753684,0.0001,124.21,124.2,0.063]
[1741847755104,24.17982249,124.21,124.2,0.063]
[1741847755404,0.0001,124.21,124.2,0.063]
[1741847756801,24.46414563,124.21,124.2,0.063]
[1741847757000,49.53719449,124.21,124.2,0.063]
[1741847757199,57.58799449,124.21,124.2,0.063]
[1741847758707,57.58799449,124.21,124.2,0.0001]
[1741847760504,51.16459449,124.21,124.2,0.0001]
[1741847763608,52.69659449,124.21,124.2,0.0001]
[1741847764814,25.386572,124.2,124.13,0.063]
[1741847765109,24.17972249,124.15,124.13,0.063]
[1741847765912,32.23442249,124.15,124.13,0.063]
[1741847766485,24.17972249,124.15,124.13,0.063]
[1741847766906,24.17972249,124.14,124.13,0.063]
[1741847767720,32.23462249,124.15,124.13,0.063]
[1741847768214,24.17972249,124.14,124.13,0.063]
[1741847769106,32.23512249,124.14,124.13,0.063]
[1741847769486,32.51944563,124.14,124.13,0.063]
[1741847771292,24.17972249,124.14,124.13,0.063]
[1741847771488,0.14216157,124.18,124.13,7.343]
[1741847771689,43.11369449,124.18,124.13,7.343]
[1741847772413,8.0517,124.2,124.13,31.52272249]
[1741847772620,0.28432314,124.19,124.14,24.17972249]
[1741847772824,24.46414563,124.21,124.15,24.17972249]
[1741847772991,0.0001,124.21,124.17,44.17972249]
[1741847773193,0.0001,124.21,124.18,31.45972249]
[1741847773396,0.0001,124.21,124.19,8.0521]
[1741847773707,0.0001,124.21,124.18,7.28]
[1741847774295,24.17972249,124.2,124.18,7.28]
[1741847774522,24.17972249,124.19,124.18,7.28]
[1741847774903,0.28432314,124.18,124.15,7.28]
[1741847775100,0.28432314,124.18,124.14,15.149]
[1741847775101,24.17972249,124.17,124.14,15.149]
[1741847775299,24.17972249,124.17,124.14,8.8777]
[1741847775712,24.17972249,124.16,124.14,7.28]
[1741847775901,24.17972249,124.17,124.14,7.28]
[1741847777218,24.17972249,124.17,124.13,0.063]
[1741847777423,24.17972249,124.16,124.13,0.063]
[1741847777894,24.17972249,124.15,124.13,0.063]
[1741847778620,24.17972249,124.14,124.13,0.063]
[1741847778995,32.51944563,124.14,124.13,0.063]
[1741847781635,51.16909449,124.14,124.13,0.063]
[1741847787126,0.28432314,124.14,124.13,0.063]
[1741847789127,32.51944563,124.14,124.13,0.063]
[1741847789643,32.23472249,124.15,124.13,0.063]
[1741847791319,0.28432314,124.15,124.13,0.063]
[1741847791842,32.37618406,124.16,124.13,0.063]
[1741847792146,24.46404563,124.15,124.13,0.063]
[1741847793332,8.0554,124.14,124.13,0.063]
[1741847794029,8.33972314,124.14,124.13,0.063]
[1741847794232,51.16909449,124.14,124.13,0.063]
[1741847794747,24.17972249,124.14,124.13,0.063]
[1741847795435,26.989372,124.14,124.13,0.063]
[1741847795636,51.16909449,124.14,124.13,0.063]
[1741847796146,26.989372,124.14,124.13,0.063]
[1741847796340,51.16909449,124.14,124.13,0.063]
[1741847799630,26.989372,124.14,124.13,0.063]
[1741847799948,32.23472249,124.15,124.13,0.063]
[1741847800342,24.46404563,124.14,124.13,0.063]
[1741847800853,32.51944563,124.14,124.13,0.063]
[1741847802948,51.16909449,124.14,124.13,0.063]
[1741847804452,42.50015071,124.14,124.13,0.063]
[1741847806357,51.22589479,124.14,124.13,0.063]
[1741847807558,18.933972,124.13,124.07,1.6168]
[1741847807739,24.23652279,124.1,124.07,1.6168]
[1741847808141,24.23652279,124.09,124.07,1.6168]
[1741847808662,24.23652279,124.1,124.07,1.6168]
[1741847808847,8.0586,124.09,124.07,1.6168]
[1741847811662,24.23652279,124.08,124.07,0.063]
[1741847812461,43.17049479,124.08,124.07,0.063]
[1741847813037,51.22979479,124.08,124.07,0.063]
[1741847822290,24.52084593,124.08,124.07,0.063]
[1741847822454,51.22979479,124.08,124.07,0.063]
[1741847828372,42.51959681,124.08,124.07,0.063]
[1741847835595,18.933972,124.07,124.06,0.063]
[1741847835771,34.46029681,124.07,124.06,0.063]
[1741847837187,42.52019681,124.07,124.06,0.063]
[1741847841094,34.46029681,124.07,124.06,0.063]
[1741847841272,18.933972,124.07,124.06,0.063]
[1741847841464,42.52019681,124.07,124.06,0.063]
[1741847843171,42.55019681,124.07,124.06,0.063]
[1741847844883,34.49029681,124.07,124.06,0.063]
[1741847845193,42.55019681,124.07,124.06,0.063]
[1741847858669,23.90054795,124.07,124.06,0.063]
[1741847858998,46.15056869,124.07,124.0,7.8646]
[1741847859167,15.52632481,124.03,124.0,7.8646]
[1741847859576,15.66848638,124.04,124.0,15.9291]
[1741847859990,0.14216157,124.03,124.0,7.8646]
[1741847860306,15.52632481,124.03,124.0,7.8646]
[1741847860988,23.58912481,124.03,124.0,7.8646]
[1741847861400,0.28432314,124.02,124.0,7.8646]
[1741847862600,15.52632481,124.03,124.0,7.8646]
[1741847863589,0.28432314,124.03,124.0,7.8646]
[1741847863907,23.73098638,124.03,124.0,7.8646]
[1741847864307,8.20466157,124.03,124.0,7.8646]
[1741847864479,23.73098638,124.03,124.0,7.8646]
[1741847865603,8.20466157,124.03,124.0,7.8646]
[1741847866284,15.66848638,124.05,124.0,23.39092481]
[1741847866484,23.72988638,124.05,124.0,31.45532481]
[1741847866679,0.14216157,124.04,124.0,7.8646]
[1741847866904,15.66848638,124.04,124.0,7.8646]
[1741847868304,15.52632481,124.04,124.0,7.8646]
[1741847868602,8.0625,124.04,124.0,7.8646]
[1741847870307,23.87394795,124.02,124.0,7.8646]
[1741847870519,8.34762314,124.02,124.0,1.6716]
[1741847872715,8.0633,124.02,124.0,1.6716]
[1741847873183,8.0619,124.04,124.0,1.6716]
[1741847873388,8.0619,124.04,124.0,17.19792481]
[1741847873609,8.0619,124.04,124.0,1.6716]
[1741847875396,8.34552314,124.05,124.0,1.6716]
[1741847875599,0.03,124.07,124.06,21.6087]
[1741847875796,0.03,124.13,124.07,6.2462]
[1741847876014,0.03,124.13,124.05,213.36]
[1741847876015,0.28432314,124.08,124.05,213.36]
[1741847876197,18.64964886,124.09,124.03,7.9008]
[1741847876198,0.28432314,124.09,124.03,7.9008]
[1741847876717,0.28432314,124.09,124.04,15.52632481]
[1741847877024,9.72048923,124.1,124.06,35.52632481]
[1741847877189,25.24681404,124.1,124.05,15.52632481]
[1741847877394,15.52632481,124.09,124.04,15.52632481]
[1741847878191,23.58492481,124.09,124.03,23.42712481]
[1741847878390,15.52632481,124.08,124.03,23.42712481]
[1741847878595,15.52632481,124.08,124.03,7.9008]
[1741847879123,15.81064795,124.07,124.03,7.9008]
[1741847879303,0.28432314,124.07,124.03,7.9008]
[1741847879807,0.28432314,124.07,124.03,23.42712481]
[1741847880224,0.28432314,124.07,124.03,7.9008]
[1741847880401,8.34442314,124.07,124.03,7.9008]
[1741847880899,0.28432314,124.07,124.03,7.9008]
[1741847881196,8.34432314,124.07,124.03,7.9008]
[1741847881604,23.87064795,124.07,124.03,7.9008]
[1741847881802,8.34432314,124.07,124.03,7.9008]
[1741847882299,8.34432314,124.07,124.03,23.42712481]
[1741847882300,0.28432314,124.07,124.03,23.42712481]
[1741847882500,0.28432314,124.07,124.03,31.48962481]
[1741847883323,0.03,124.08,124.05,15.52632481]
[1741847883693,20.28432314,124.05,124.0,82.363]
[1741847883916,34.49029681,124.08,124.0,82.363]
[1741847883917,83.1,124.07,124.0,0.063]
[1741847884097,15.52632481,124.03,124.0,0.063]
[1741847884519,18.933972,124.06,124.0,0.063]
[1741847884693,15.52632481,124.05,124.0,0.063]
[1741847884896,18.933972,124.06,124.0,0.063]
[1741847885097,0.28432314,124.03,124.0,0.063]
[1741847885396,15.52632481,124.03,124.0,0.063]
[1741847885597,18.79181043,124.06,124.0,0.063]
[1741847885800,18.933972,124.05,124.0,0.063]
[1741847885999,15.52632481,124.04,124.0,0.063]
[1741847886308,15.52632481,124.03,124.0,0.063]
[1741847886715,18.79181043,124.05,124.0,0.063]
[1741847886901,0.14216157,124.04,124.0,0.063]
[1741847887107,15.66848638,124.04,124.0,0.063]
[1741847887714,0.14216157,124.04,124.0,0.063]
[1741847887921,8.20426157,124.04,124.0,0.063]
[1741847888121,8.0621,124.04,124.0,0.063]
[1741847888319,8.0621,124.04,124.01,7.28]
[1741847888534,23.58842481,124.04,124.01,7.28]
[1741847889232,8.0621,124.04,124.01,7.28]
[1741847890229,23.58842481,124.04,124.01,7.28]
[1741847890435,0.28432314,124.03,124.01,7.28]
[1741847891134,43.74312481,124.04,124.01,7.28]
[1741847891630,0.28432314,124.03,124.01,7.28]
[1741847891836,15.81064795,124.02,124.01,0.063]
[1741847892525,23.87384795,124.02,124.01,0.0001]
[1741847892730,0.28432314,124.0,123.96,219.9797]
[1741847892932,15.81064795,124.0,123.95,1.6148]
[1741847893236,15.52632481,123.98,123.95,0.063]
[1741847893537,0.28432314,123.98,123.95,0.063]
[1741847894006,0.28432314,124.0,123.96,15.52632481]
[1741847894812,8.34922314,124.0,123.96,15.52632481]
[1741847895514,8.34922314,124.0,123.95,15.58932481]
[1741847896234,8.34922314,124.0,123.95,23.65702481]
[1741847896532,8.34922314,124.0,123.95,15.58932481]
[1741847897012,0.28432314,124.0,123.96,15.52632481]
[1741847897207,0.28432314,124.01,123.96,15.52632481]
[1741847897407,0.14216157,124.03,123.97,17.04382481]
[1741847897610,0.14216157,124.03,123.98,7.28]
[1741847897611,23.73118638,124.03,123.98,7.28]
[1741847897935,8.20486157,124.03,123.98,29.26882481]
[1741847898134,23.73118638,124.03,123.98,13.7425]
[1741847898635,23.73118638,124.03,123.98,21.808]
[1741847898816,23.73058638,124.04,123.98,37.33432481]
[1741847899023,15.66848638,124.04,123.98,37.33432481]
[1741847899222,15.66848638,124.04,123.99,15.52632481]
[1741847899532,23.73038638,124.04,123.98,37.33432481]
[1741847900133,15.81064795,124.02,123.98,13.7425]
[1741847900340,8.0638,124.01,123.98,13.7425]
[1741847900711,23.58972481,124.02,123.98,13.7425]
[1741847901115,0.28432314,124.01,123.98,13.7425]
[1741847901316,15.52632481,124.0,123.98,7.28]
[1741847901529,15.52632481,123.99,123.95,0.063]
[1741847901846,0.14216157,123.99,123.95,0.063]
[1741847902512,0.14216157,123.97,123.95,0.063]
[1741847903026,15.66848638,123.97,123.95,0.063]
[1741847903437,15.52632481,123.97,123.95,0.063]
[1741847904310,34.46029681,123.96,123.95,0.063]
[1741847904559,42.52739681,123.96,123.95,0.063]
[1741847904940,44.16889681,123.96,123.95,0.0001]
[1741847908721,27.001072,123.96,123.95,0.0001]
[1741847909135,42.52739681,123.96,123.95,0.0001]
[1741847911248,27.001072,123.96,123.95,0.0001]
[1741847911434,15.52632481,123.97,123.95,0.0001]
[1741847911634,0.14216157,123.97,123.95,0.0001]
[1741847912436,18.64964886,123.99,123.95,0.0001]
[1741847912437,15.52632481,123.99,123.95,0.0001]
[1741847913451,42.52519681,124.0,123.95,0.0001]
[1741847913621,15.55632481,124.02,123.96,22.80632481]
[1741847913947,0.28432314,124.01,123.96,22.80632481]
[1741847914147,23.61962481,124.02,123.96,22.80632481]
[1741847914452,15.52632481,124.01,123.96,22.80632481]
[1741847914843,23.59022481,124.01,123.96,22.80632481]
[1741847915351,8.0639,124.01,123.97,1.5592]
[1741847916147,23.61972481,124.02,123.97,1.5592]
[1741847916534,0.28432314,123.99,123.97,1.5592]
[1741847917052,15.52632481,124.0,123.97,1.5592]
[1741847917453,0.28432314,123.99,123.95,0.0001]
[1741847917641,15.52632481,124.0,123.95,7.2801]
[1741847917642,15.81064795,123.98,123.95,7.2801]
[1741847917854,15.52632481,123.99,123.95,7.2801]
[1741847918545,23.59152481,123.99,123.95,7.2801]
[1741847921256,8.0652,123.99,123.95,7.2801]
[1741847922356,0.28432314,123.98,123.95,7.2801]
[1741847923255,8.35062314,123.98,123.95,7.2801]
[1741847923757,8.0663,123.98,123.95,7.2801]
[1741847924639,0.17216157,124.01,123.96,15.52632481]
[1741847924840,0.03,124.01,123.97,15.52632481]